fUST/lending_fUST_20240410
["ID","MTS","AMOUNT","RATE_DAILY","PERIOD"]
[322050229,1712724647178,-157.972296,0.00025197,2]
[322050230,1712724647187,-3137.2807674,0.00025197,2]
[322050232,1712724900909,1600.0,0.0002,2]
[322050234,1712725013900,7888.0,0.00022091,5]
[322050263,1712725367359,214.9596027,0.0002005,2]
[322050269,1712725439788,18650.4714188,0.00020047,2]
[322050291,1712725751034,150.0,0.00019991,2]
[322050292,1712725757400,238.77674324,0.00020961,2]
[322050311,1712725831865,-936.36329074,0.00021011,2]
[322050312,1712725831876,-154.98450155,0.00021012,2]
[322050313,1712725831885,-1866.41705732,0.00021012,2]
[322050314,1712725831895,-447.61219117,0.00021013,2]
[322050315,1712725831909,-98.57713976,0.00021013,2]
[322050316,1712725831919,-285.22268944,0.00021013,2]
[322050404,1712725838305,-2295.43372737,0.00021013,2]
[322050405,1712725838315,-1087.50404334,0.00021014,2]
[322050406,1712725838325,-507.28333989,0.00021014,2]
[322050407,1712725838335,-1486.14046783,0.00021015,2]
[322050408,1712725838344,-300.0,0.00021015,2]
[322050409,1712725838354,-300.0,0.00021015,2]
[322050410,1712725838363,-33565.06388329,0.00021052,2]
[322050411,1712725838372,-155.94198528,0.00021061,2]
[322050412,1712725838382,-500.0,0.00021917,2]
[322050414,1712725838391,-500.0,0.00021917,2]
[322050415,1712725838402,-500.0,0.00021917,2]
[322050416,1712725838411,-500.0,0.00021917,2]
[322050417,1712725838421,-500.0,0.00021917,2]
[322050418,1712725838430,-507.82,0.00021917,2]
[322050419,1712725838440,-500.0,0.00021917,2]
[322050420,1712725838449,-500.0,0.00021917,2]
[322050421,1712725838458,-500.0,0.00021917,2]
[322050422,1712725838471,-500.0,0.00021917,2]
[322050423,1712725838480,-500.0,0.00021917,2]
[322050424,1712725838489,-500.0,0.00021917,2]
[322050425,1712725838499,-500.0,0.00021917,2]
[322050426,1712725838510,-500.0,0.00021917,2]
[322050427,1712725838631,-500.0,0.00021917,2]
[322050428,1712725838640,-500.0,0.00021917,2]
[322050429,1712725838650,-500.0,0.00021917,2]
[322050430,1712725838660,-500.0,0.00021917,2]
[322050431,1712725838670,-500.0,0.00021917,2]
[322050432,1712725838679,-500.0,0.00021917,2]
[322050433,1712725838688,-500.0,0.00021917,2]
[322050434,1712725838697,-500.0,0.00021917,2]
[322050435,1712725838707,-500.0,0.00021917,2]
[322050436,1712725838716,-160.14910889,0.00021917,2]
[322050437,1712725838727,-500.0,0.00021917,2]
[322050438,1712725838737,-500.0,0.00021917,2]
[322050439,1712725838746,-700.65,0.00021917,2]
[322050440,1712725838757,-500.0,0.00021917,2]
[322050441,1712725838768,-500.0,0.00021917,2]
[322050442,1712725838779,-500.0,0.00021917,2]
[322050443,1712725838790,-500.0,0.00021917,2]
[322050444,1712725838801,-500.0,0.00021917,2]
[322050445,1712725838811,-2168.93,0.00021917,2]
[322050446,1712725838821,-523.259385,0.00021917,2]
[322050447,1712725838834,-616.42300415,0.00021917,2]
[322050448,1712725838843,-500.0,0.00021917,2]
[322050449,1712725838852,-500.0,0.00021917,2]
[322050450,1712725838861,-500.0,0.00021917,2]
[322050451,1712725838870,-500.0,0.00021917,2]
[322050452,1712725838879,-500.0,0.00021917,2]
[322050453,1712725838889,-500.0,0.00021917,2]
[322050454,1712725838897,-500.0,0.00021917,2]
[322050455,1712725838907,-501.01806855,0.00021917,2]
[322050456,1712725838916,-500.0,0.00021917,2]
[322050457,1712725838925,-500.0,0.00021917,2]
[322050458,1712725838934,-500.0,0.00021917,2]
[322050459,1712725838943,-500.0,0.00021917,2]
[322050460,1712725838952,-500.0,0.00021917,2]
[322050461,1712725838962,-500.0,0.00021917,2]
[322050462,1712725838971,-873.47,0.00021917,2]
[322050463,1712725838980,-500.0,0.00021917,2]
[322050464,1712725838989,-642.28,0.00021917,2]
[322050465,1712725838999,-500.0,0.00021917,2]
[322050466,1712725839012,-500.0,0.00021917,2]
[322050467,1712725839022,-597.00357952,0.00022091,2]
[322050468,1712725839031,-500.0,0.00022174,2]
[322050469,1712725839040,-500.0,0.00022174,2]
[322050470,1712725839049,-500.0,0.00022174,2]
[322050471,1712725839057,-500.0,0.00022174,2]
[322050472,1712725839066,-500.0,0.00022182,2]
[322050473,1712725839076,-500.0,0.00022182,2]
[322050474,1712725839086,-523.83,0.00022182,2]
[322050475,1712725839095,-500.0,0.00022182,2]
[322050476,1712725839104,-500.0,0.00022182,2]
[322050477,1712725839114,-500.0,0.00022182,2]
[322050478,1712725839123,-500.0,0.00022182,2]
[322050479,1712725839133,-4298.47436768,0.00022183,2]
[322050480,1712725839142,-501.24044802,0.00022183,2]
[322050481,1712725839151,-500.0,0.00022191,2]
[322050482,1712725839160,-500.0,0.00022191,2]
[322050484,1712725839170,-500.0,0.00022191,2]
[322050485,1712725839179,-500.0,0.00022191,2]
[322050486,1712725839188,-500.0,0.00022191,2]
[322050487,1712725839196,-500.0,0.00022191,2]
[322050488,1712725839206,-500.0,0.00022191,2]
[322050489,1712725839214,-500.0,0.00022191,2]
[322050490,1712725839223,-500.0,0.00022191,2]
[322050491,1712725839232,-500.0,0.00022191,2]
[322050492,1712725839241,-500.0,0.00022191,2]
[322050493,1712725839249,-500.0,0.00022191,2]
[322050494,1712725839261,-500.0,0.00022191,2]
[322050495,1712725839270,-500.0,0.00022191,2]
[322050496,1712725839279,-700.65,0.00022191,2]
[322050497,1712725839287,-500.0,0.00022191,2]
[322050498,1712725839296,-500.0,0.00022191,2]
[322050499,1712725839305,-500.0,0.00022191,2]
[322050500,1712725839315,-2168.93,0.00022191,2]
[322050501,1712725839324,-500.0,0.00022191,2]
[322050502,1712725839333,-500.0,0.00022191,2]
[322050503,1712725839342,-500.0,0.00022191,2]
[322050504,1712725839351,-500.0,0.00022191,2]
[322050506,1712725839360,-500.0,0.00022191,2]
[322050507,1712725839369,-212.11918038,0.00022191,2]
[322050508,1712725839378,-500.0,0.00022191,2]
[322050509,1712725839388,-500.0,0.00022191,2]
[322050510,1712725839397,-500.0,0.00022191,2]
[322050511,1712725839406,-873.47,0.00022191,2]
[322050512,1712725839415,-500.0,0.00022191,2]
[322050513,1712725839424,-500.0,0.00022191,2]
[322050514,1712725839432,-500.0,0.00022191,2]
[322050515,1712725839441,-500.0,0.00022448,2]
[322050516,1712725839451,-500.0,0.00022448,2]
[322050517,1712725839460,-284.45404807,0.00022448,2]
[322050518,1712725839470,-541.85487659,0.00022454,2]
[322050519,1712725839479,-193.74057246,0.00022454,2]
[322050520,1712725839488,-356.50027977,0.00022454,2]
[322050521,1712725839497,-500.0,0.00022456,2]
[322050522,1712725839510,-500.0,0.00022456,2]
[322050523,1712725839519,-523.83,0.00022456,2]
[322050524,1712725839529,-500.0,0.00022456,2]
[322050525,1712725839538,-500.0,0.00022456,2]
[322050526,1712725839547,-500.0,0.00022456,2]
[322050527,1712725839557,-500.0,0.00022465,2]
[322050528,1712725839567,-500.0,0.00022465,2]
[322050529,1712725839576,-500.0,0.00022465,2]
[322050530,1712725839585,-500.0,0.00022465,2]
[322050531,1712725839595,-500.0,0.00022465,2]
[322050533,1712725839606,-500.0,0.00022465,2]
[322050534,1712725839616,-500.0,0.00022465,2]
[322050535,1712725839627,-479.92,0.00022465,2]
[322050536,1712725839636,-500.0,0.00022465,2]
[322050537,1712725839646,-500.0,0.00022465,2]
[322050538,1712725839655,-500.0,0.00022465,2]
[322050539,1712725839664,-700.65,0.00022465,2]
[322050540,1712725839673,-500.0,0.00022465,2]
[322050541,1712725839682,-412.18,0.00022465,2]
[322050542,1712725839691,-500.0,0.00022465,2]
[322050543,1712725839700,-2168.93,0.00022465,2]
[322050544,1712725839709,-403.94,0.00022465,2]
[322050545,1712725839718,-500.0,0.00022465,2]
[322050546,1712725839728,-500.0,0.00022465,2]
[322050547,1712725839737,-500.0,0.00022465,2]
[322050548,1712725839746,-500.0,0.00022465,2]
[322050549,1712725839757,-500.0,0.00022465,2]
[322050550,1712725839766,-873.47,0.00022465,2]
[322050551,1712725839776,-500.0,0.00022465,2]
[322050552,1712725839785,-500.0,0.00022465,2]
[322050553,1712725839794,-500.0,0.00022465,2]
[322050554,1712725839803,-500.0,0.00022722,2]
[322050555,1712725839813,-500.0,0.0002273,2]
[322050556,1712725839823,-500.0,0.0002273,2]
[322050557,1712725839836,-523.83,0.0002273,2]
[322050558,1712725839846,-500.0,0.0002273,2]
[322050559,1712725839855,-500.0,0.0002273,2]
[322050560,1712725839864,-500.0,0.0002273,2]
[322050561,1712725839874,-500.0,0.00022739,2]
[322050562,1712725839883,-500.0,0.00022739,2]
[322050563,1712725839893,-500.0,0.00022739,2]
[322050564,1712725839902,-500.0,0.00022739,2]
[322050565,1712725839911,-203.24,0.00022739,2]
[322050566,1712725839920,-500.0,0.00022739,2]
[322050567,1712725839929,-500.0,0.00022739,2]
[322050568,1712725839938,-500.0,0.00022739,2]
[322050569,1712725839947,-500.0,0.00022739,2]
[322050570,1712725839956,-500.0,0.00022739,2]
[322050571,1712725839966,-700.65,0.00022739,2]
[322050572,1712725839976,-500.0,0.00022739,2]
[322050573,1712725839985,-500.0,0.00022739,2]
[322050574,1712725839994,-2168.93,0.00022739,2]
[322050575,1712725840004,-500.0,0.00022739,2]
[322050576,1712725840014,-500.0,0.00022739,2]
[322050577,1712725840023,-558.18,0.00022739,2]
[322050578,1712725840033,-500.0,0.00022739,2]
[322050579,1712725840043,-500.0,0.00022739,2]
[322050580,1712725840052,-873.47,0.00022739,2]
[322050581,1712725840062,-500.0,0.00022739,2]
[322050582,1712725840071,-189.94811751,0.00022739,2]
[322050583,1712725840080,-500.0,0.00022739,2]
[322050584,1712725840089,-420.0,0.00022859,2]
[322050585,1712725840098,-238.77674323,0.00022974,2]
[322050586,1712725840107,-500.0,0.00022996,2]
[322050587,1712725840117,-500.0,0.00023004,2]
[322050588,1712725840126,-500.0,0.00023004,2]
[322050589,1712725840136,-523.83,0.00023004,2]
[322050590,1712725840146,-500.0,0.00023004,2]
[322050591,1712725840155,-500.0,0.00023004,2]
[322050592,1712725840165,-500.0,0.00023004,2]
[322050593,1712725840176,-1009.80733791,0.00023006,2]
[322050594,1712725840185,-29150.42773612,0.00023013,2]
[322050595,1712725840195,-500.0,0.00023013,2]
[322050596,1712725840204,-500.0,0.00023013,2]
[322050597,1712725840214,-592.79153774,0.00023013,2]
[322050598,1712725840224,-500.0,0.00023013,2]
[322050599,1712725840234,-500.0,0.00023013,2]
[322050600,1712725840243,-500.0,0.00023013,2]
[322050601,1712725840252,-500.0,0.00023013,2]
[322050602,1712725840262,-500.0,0.00023013,2]
[322050603,1712725840271,-500.0,0.00023013,2]
[322050604,1712725840280,-700.65,0.00023013,2]
[322050605,1712725840289,-500.0,0.00023013,2]
[322050606,1712725840298,-500.0,0.00023013,2]
[322050607,1712725840307,-2168.93,0.00023013,2]
[322050608,1712725840316,-500.0,0.00023013,2]
[322050609,1712725840325,-500.0,0.00023013,2]
[322050610,1712725840334,-500.0,0.00023013,2]
[322050611,1712725840343,-500.0,0.00023013,2]
[322050612,1712725840352,-873.47,0.00023013,2]
[322050613,1712725840361,-254.84,0.00023013,2]
[322050614,1712725840370,-500.0,0.00023013,2]
[322050615,1712725840380,-1153.68338227,0.00023049,2]
[322050616,1712725840389,-420.0,0.00023117,2]
[322050617,1712725840397,-500.0,0.0002327,2]
[322050618,1712725840406,-276.0,0.00023278,2]
[322050619,1712725840415,-500.0,0.00023278,2]
[322050620,1712725840424,-523.83,0.00023278,2]
[322050621,1712725840434,-500.0,0.00023278,2]
[322050622,1712725840443,-500.0,0.00023278,2]
[322050623,1712725840452,-500.0,0.00023287,2]
[322050624,1712725840461,-500.0,0.00023287,2]
[322050625,1712725840470,-429.20825194,0.00023287,2]
[322050626,1712725840479,-500.0,0.00023287,2]
[322050627,1712725840488,-500.0,0.00023287,2]
[322050628,1712725840497,-500.0,0.00023287,2]
[322050629,1712725840508,-500.0,0.00023287,2]
[322050630,1712725840517,-500.0,0.00023287,2]
[322050631,1712725840526,-700.65,0.00023287,2]
[322050632,1712725840535,-500.0,0.00023287,2]
[322050633,1712725840544,-509.83864137,0.00023287,2]
[322050634,1712725840553,-2168.93,0.00023287,2]
[322050635,1712725840562,-500.0,0.00023287,2]
[322050636,1712725840571,-500.0,0.00023287,2]
[322050637,1712725840580,-500.0,0.00023287,2]
[322050638,1712725840589,-873.47,0.00023287,2]
[322050639,1712725840598,-500.0,0.00023287,2]
[322050640,1712725840607,-597.00357951,0.00023393,2]
[322050641,1712725840616,-2000.0,0.00023461,2]
[322050642,1712725840625,-500.0,0.00023544,2]
[322050643,1712725840634,-500.0,0.00023552,2]
[322050644,1712725840644,-523.83,0.00023552,2]
[322050645,1712725840654,-500.0,0.00023552,2]
[322050646,1712725840664,-500.0,0.00023552,2]
[322050647,1712725840673,-500.0,0.00023561,2]
[322050648,1712725840683,-500.0,0.00023561,2]
[322050649,1712725840691,-500.0,0.00023561,2]
[322050650,1712725840701,-500.0,0.00023561,2]
[322050651,1712725840711,-500.0,0.00023561,2]
[322050652,1712725840722,-500.0,0.00023561,2]
[322050653,1712725840732,-500.0,0.00023561,2]
[322050654,1712725840741,-700.65,0.00023561,2]
[322050655,1712725840750,-500.0,0.00023561,2]
[322050656,1712725840761,-2168.93,0.00023561,2]
[322050657,1712725840770,-500.0,0.00023561,2]
[322050658,1712725840780,-500.0,0.00023561,2]
[322050659,1712725840789,-500.0,0.00023561,2]
[322050660,1712725840799,-873.47,0.00023561,2]
[322050661,1712725840808,-307.06,0.00023561,2]
[322050662,1712725840820,-500.0,0.00023818,2]
[322050663,1712725840835,-500.0,0.00023826,2]
[322050664,1712725840845,-523.83,0.00023826,2]
[322050665,1712725840854,-500.0,0.00023826,2]
[322050666,1712725840863,-626.98,0.00023826,2]
[322050667,1712725840873,-500.0,0.00023835,2]
[322050668,1712725840883,-500.0,0.00023835,2]
[322050669,1712725840892,-500.0,0.00023835,2]
[322050670,1712725840901,-175.82726282,0.00023835,2]
[322050695,1712725846627,-211.46315052,0.00021012,2]
[322050696,1712725846636,-147.76247275,0.00021917,2]
[322050703,1712726092860,155.90489577,0.00020994,2]
[322050704,1712726322754,165.003281,0.00020424,2]
[322050706,1712726505055,1301.0703961,0.00020377,2]
[322050710,1712726582187,5236.5499441,0.00020478,2]
[322050713,1712726840569,177.5887331,0.00019771,2]
[322050714,1712726843784,208.92965037,0.00020945,2]
[322050716,1712726956280,150.0,0.000189,2]
[322050723,1712727031987,-215.82383049,0.00021024,2]
[322050724,1712727031996,-154.98450155,0.00021025,2]
[322050725,1712727032005,-473.35415897,0.00021026,2]
[322050726,1712727032014,-5264.40266933,0.00021026,2]
[322050728,1712727032043,-303.5414213,0.00021026,2]
[322050730,1712727032051,-562.4278214,0.00021027,2]
[322050732,1712727032060,-422.73611657,0.00021028,2]
[322050733,1712727032069,-400.0,0.00021028,2]
[322050734,1712727032077,-360.95751741,0.00021028,2]
[322050735,1712727032086,-300.0,0.0002103,2]
[322050736,1712727032095,-300.0,0.0002103,2]
[322050737,1712727032104,-409.14954669,0.00021044,2]
[322050768,1712727038035,-936.36329074,0.00021023,2]
[322050769,1712727038045,-19287.92626529,0.00021044,2]
[322050770,1712727038054,-6908.40313979,0.00021045,2]
[322050771,1712727038064,-889.28026318,0.00021817,2]
[322050772,1712727038073,-500.0,0.00021917,2]
[322050773,1712727038082,-500.0,0.00021917,2]
[322050774,1712727038091,-500.0,0.00021917,2]
[322050775,1712727038101,-608.55204387,0.00021917,2]
[322050776,1712727038110,-500.0,0.00021917,2]
[322050777,1712727038119,-500.0,0.00021917,2]
[322050778,1712727038128,-500.0,0.00021917,2]
[322050779,1712727038138,-500.0,0.00021917,2]
[322050780,1712727038147,-501.32595177,0.00021917,2]
[322050781,1712727038159,-503.94137622,0.00021917,2]
[322050782,1712727038180,-500.0,0.00021917,2]
[322050783,1712727038202,-500.0,0.00021917,2]
[322050784,1712727038225,-500.0,0.00021917,2]
[322050785,1712727038247,-500.0,0.00021917,2]
[322050786,1712727038269,-500.0,0.00021917,2]
[322050787,1712727038292,-500.0,0.00021917,2]
[322050788,1712727038314,-500.0,0.00021917,2]
[322050789,1712727038333,-500.0,0.00021917,2]
[322050790,1712727038345,-502.43028548,0.00021917,2]
[322050791,1712727038355,-500.0,0.00021917,2]
[322050792,1712727038365,-471.47185933,0.00021917,2]
[322050793,1712727038375,-500.0,0.00021917,2]
[322050794,1712727038384,-500.0,0.00021917,2]
[322050795,1712727038393,-500.0,0.00021917,2]
[322050796,1712727038402,-500.0,0.00021917,2]
[322050797,1712727038413,-500.0,0.00021917,2]
[322050798,1712727038422,-500.0,0.00021917,2]
[322050799,1712727038431,-500.0,0.00021917,2]
[322050800,1712727038444,-500.0,0.00021917,2]
[322050801,1712727038453,-500.0,0.00021917,2]
[322050802,1712727038462,-608.79359272,0.00021917,2]
[322050803,1712727038472,-352.23752725,0.00021917,2]
[322050804,1712727038481,-500.0,0.00021917,2]
[322050805,1712727038490,-500.2733828,0.00021917,2]
[322050806,1712727038501,-502.15530542,0.00021917,2]
[322050807,1712727038511,-500.0,0.00021917,2]
[322050808,1712727038520,-500.0,0.00021917,2]
[322050809,1712727038530,-500.0,0.00021917,2]
[322050810,1712727038540,-500.0,0.00021917,2]
[322050811,1712727038550,-500.0,0.00021917,2]
[322050812,1712727038560,-500.0,0.00021917,2]
[322050813,1712727038569,-500.0,0.00021917,2]
[322050814,1712727038578,-500.0,0.00021917,2]
[322050815,1712727038587,-500.0,0.00021917,2]
[322050816,1712727038596,-744.76,0.00021917,2]
[322050817,1712727038606,-500.0,0.00021917,2]
[322050818,1712727038615,-575.3,0.00021917,2]
[322050819,1712727038625,-500.0,0.00021917,2]
[322050820,1712727038634,-500.0,0.00021917,2]
[322050821,1712727038644,-500.0,0.00021917,2]
[322050822,1712727038654,-500.0,0.00021917,2]
[322050823,1712727038664,-500.0,0.00021917,2]
[322050824,1712727038674,-500.0,0.00021917,2]
[322050825,1712727038685,-500.0,0.00021917,2]
[322050826,1712727038695,-500.0,0.00021917,2]
[322050827,1712727038704,-500.0,0.00021917,2]
[322050828,1712727038713,-500.0,0.00021917,2]
[322050829,1712727038722,-541.98,0.00021917,2]
[322050830,1712727038732,-501.61083213,0.00021917,2]
[322050831,1712727038741,-504.20112112,0.00021917,2]
[322050832,1712727038750,-500.0,0.00021917,2]
[322050833,1712727038759,-502.51844573,0.00021917,2]
[322050834,1712727038768,-500.0,0.00021917,2]
[322050835,1712727038778,-500.0,0.00021917,2]
[322050836,1712727038787,-500.0,0.00021917,2]
[322050837,1712727038796,-500.0,0.00021917,2]
[322050838,1712727038805,-500.0,0.00021917,2]
[322050839,1712727038814,-2294.52,0.00021917,2]
[322050840,1712727038824,-500.0,0.00021917,2]
[322050841,1712727038833,-500.0,0.00021917,2]
[322050842,1712727038843,-500.0,0.00021917,2]
[322050843,1712727038853,-500.0,0.00021917,2]
[322050844,1712727038862,-500.0,0.00021917,2]
[322050845,1712727038873,-500.0,0.00021917,2]
[322050846,1712727038882,-500.0,0.00021917,2]
[322050847,1712727038891,-491.02514145,0.00021917,2]
[322050848,1712727038901,-500.0,0.00021917,2]
[322050849,1712727038911,-500.0,0.00021917,2]
[322050850,1712727038920,-500.0,0.00021917,2]
[322050851,1712727038929,-500.0,0.00021917,2]
[322050852,1712727038941,-500.0,0.00021917,2]
[322050853,1712727038951,-500.0,0.00021917,2]
[322050854,1712727038960,-171.83381504,0.00021917,2]
[322050855,1712727038969,-500.0,0.00021917,2]
[322050856,1712727038980,-500.0,0.00021917,2]
[322050857,1712727038989,-500.0,0.00021917,2]
[322050858,1712727038999,-506.37580024,0.00021917,2]
[322050859,1712727039010,-500.0,0.00021917,2]
[322050860,1712727039019,-509.99280352,0.00021917,2]
[322050861,1712727039028,-880.75,0.00021917,2]
[322050862,1712727039037,-500.0,0.00021917,2]
[322050863,1712727039048,-500.0,0.00021917,2]
[322050864,1712727039059,-500.0,0.00021917,2]
[322050865,1712727039068,-500.0,0.00021917,2]
[322050866,1712727039078,-500.0,0.00021917,2]
[322050867,1712727039090,-500.0,0.00021917,2]
[322050868,1712727039099,-2412.65,0.0002219,2]
[322050869,1712727039110,-562.38731302,0.0002219,2]
[322050870,1712727039120,-500.0,0.0002219,2]
[322050871,1712727039131,-500.0,0.0002219,2]
[322050872,1712727039141,-601.30359888,0.0002219,2]
[322050873,1712727039150,-452.06133573,0.0002219,2]
[322050874,1712727039159,-500.0,0.0002219,2]
[322050875,1712727039171,-188.33426589,0.0002219,2]
[322050876,1712727039181,-500.0,0.00022191,2]
[322050877,1712727039192,-500.0,0.00022191,2]
[322050878,1712727039201,-500.0,0.00022191,2]
[322050879,1712727039210,-500.0,0.00022191,2]
[322050880,1712727039219,-500.0,0.00022191,2]
[322050881,1712727039229,-159.76681131,0.00022191,2]
[322050882,1712727039238,-500.0,0.00022191,2]
[322050883,1712727039248,-500.0,0.00022191,2]
[322050884,1712727039257,-500.0,0.00022191,2]
[322050885,1712727039266,-432.81200396,0.00022191,2]
[322050886,1712727039275,-500.0,0.00022191,2]
[322050887,1712727039284,-500.0,0.00022191,2]
[322050888,1712727039293,-500.0,0.00022191,2]
[322050889,1712727039302,-500.0,0.00022191,2]
[322050890,1712727039311,-500.0,0.00022191,2]
[322050891,1712727039320,-500.0,0.00022191,2]
[322050892,1712727039329,-744.76,0.00022191,2]
[322050893,1712727039341,-575.3,0.00022191,2]
[322050894,1712727039350,-500.0,0.00022191,2]
[322050895,1712727039358,-500.0,0.00022191,2]
[322050896,1712727039368,-500.0,0.00022191,2]
[322050897,1712727039377,-500.0,0.00022191,2]
[322050898,1712727039387,-500.0,0.00022191,2]
[322050899,1712727039396,-541.98,0.00022191,2]
[322050900,1712727039405,-500.0,0.00022191,2]
[322050902,1712727039415,-500.0,0.00022191,2]
[322050903,1712727039424,-500.0,0.00022191,2]
[322050904,1712727039434,-397.7424633,0.00022191,2]
[322050905,1712727039444,-2294.52,0.00022191,2]
[322050906,1712727039453,-500.0,0.00022191,2]
[322050907,1712727039463,-500.0,0.00022191,2]
[322050908,1712727039472,-611.35604098,0.00022191,2]
[322050909,1712727039483,-500.0,0.00022191,2]
[322050910,1712727039492,-634.7734702,0.00022191,2]
[322050911,1712727039503,-500.0,0.00022191,2]
[322050912,1712727039513,-500.0,0.00022191,2]
[322050913,1712727039522,-500.0,0.00022191,2]
[322050914,1712727039531,-880.75,0.00022191,2]
[322050915,1712727039540,-500.0,0.00022191,2]
[322050916,1712727039549,-500.0,0.00022191,2]
[322050917,1712727039559,-500.0,0.00022191,2]
[322050918,1712727039568,-500.0,0.00022191,2]
[322050919,1712727039577,-500.0,0.00022191,2]
[322050921,1712727039586,-2412.65,0.00022464,2]
[322050923,1712727039596,-500.0,0.00022465,2]
[322050924,1712727039605,-500.0,0.00022465,2]
[322050926,1712727039615,-500.0,0.00022465,2]
[322050928,1712727039625,-500.0,0.00022465,2]
[322050930,1712727039634,-500.0,0.00022465,2]
[322050931,1712727039643,-500.0,0.00022465,2]
[322050933,1712727039653,-500.0,0.00022465,2]
[322050935,1712727039662,-500.0,0.00022465,2]
[322050936,1712727039671,-284.45404807,0.00022465,2]
[322050938,1712727039680,-500.0,0.00022465,2]
[322050940,1712727039691,-500.0,0.00022465,2]
[322050942,1712727039700,-500.0,0.00022465,2]
[322050943,1712727039710,-500.0,0.00022465,2]
[322050945,1712727039719,-744.76,0.00022465,2]
[322050947,1712727039728,-575.3,0.00022465,2]
[322050948,1712727039737,-500.0,0.00022465,2]
[322050950,1712727039746,-500.0,0.00022465,2]
[322050952,1712727039755,-500.0,0.00022465,2]
[322050954,1712727039765,-500.0,0.00022465,2]
[322050955,1712727039773,-500.0,0.00022465,2]
[322050957,1712727039782,-541.98,0.00022465,2]
[322050959,1712727039792,-500.0,0.00022465,2]
[322050960,1712727039800,-500.0,0.00022465,2]
[322050962,1712727039809,-2294.52,0.00022465,2]
[322050964,1712727039818,-500.0,0.00022465,2]
[322050965,1712727039827,-500.0,0.00022465,2]
[322050967,1712727039836,-500.0,0.00022465,2]
[322050969,1712727039845,-500.0,0.00022465,2]
[322050971,1712727039854,-500.0,0.00022465,2]
[322050972,1712727039863,-880.75,0.00022465,2]
[322050974,1712727039872,-500.0,0.00022465,2]
[322050976,1712727039881,-500.0,0.00022465,2]
[322050978,1712727039890,-500.0,0.00022465,2]
[322050979,1712727039899,-500.0,0.00022465,2]
[322050981,1712727039908,-2412.65,0.00022738,2]
[322050983,1712727039917,-32389.36415125,0.00022739,2]
[322050985,1712727039926,-203.24,0.00022739,2]
[322050987,1712727039937,-500.0,0.00022739,2]
[322050989,1712727039947,-500.0,0.00022739,2]
[322050990,1712727039956,-500.0,0.00022739,2]
[322050992,1712727039965,-500.0,0.00022739,2]
[322050994,1712727039974,-500.0,0.00022739,2]
[322051001,1712727039983,-500.0,0.00022739,2]
[322051003,1712727040099,-500.0,0.00022739,2]
[322051006,1712727040110,-500.0,0.00022739,2]
[322051008,1712727040120,-500.0,0.00022739,2]
[322051010,1712727040130,-500.0,0.00022739,2]
[322051011,1712727040139,-500.0,0.00022739,2]
[322051013,1712727040148,-744.76,0.00022739,2]
[322051014,1712727040157,-575.3,0.00022739,2]